[Event "21st Bangkok CC Open 2024"]
[Site "Bangkok"]
[Date "2024.04.14"]
[Round "2.2"]
[White "Frayna, Janelle Mae"]
[Black "Pranesh M"]
[Result "0-1"]
[ECO "A13"]
[WhiteElo "2190"]
[BlackElo "2538"]
[Annotator "TA"]
[PlyCount "124"]
[EventDate "2024.04.13"]
[EventType "swiss"]
[EventCountry "THA"]
[SourceTitle "playchess.com"]
[Source "ChessBase"]
[SourceQuality "1"]
[TimeControl "40/5400+30:1800+30"]

{[%evp 12,124,35,-5,41,29,22,0,0,0,-6,0,0,-10,-8,0,-7,0,-14,-22,0,-21,0,-24,0,-23,-12,-25,-29,-32,-36,-26,0,-32,0,-28,-27,-29,-25,-20,-29,-26,46,0,0,0,0,0,0,-42,-54,-54,-57,-181,-183,-189,-172,-197,-193,-188,-177,-182,-100,-113,-96,-111,-114,-105,-106,-117,-123,-117,-114,-101,-71,-80,-84,-145,-145,-129,-100,-185,-184,-190,-186,-321,-324,-1120,-1005,-1210,-1201,-1167,-1312,-1370,-1087,-1322,-1252,-1390,-1162,-1260,-1388,-1511,-1398,-4133,-2704,-1312,-1059,-1853,-1355,-29949,-29961,-29980,-29981,-29981,-29982]} 1. c4 {[%emt 0:00:10]} e6 {[%emt 0:00:05]} 2. Nf3 {[%emt 0:00:31]} Nf6 {[%emt 0:00:09]} 3. g3 {[%emt 0:00:06]} d5 {[%emt 0:00:07]} 4. Bg2 {[%emt 0:00:06]} dxc4 {[%emt 0:02:10]} 5. Qa4+ {[%emt 0:00:22]} Nbd7 {[%emt 0:00:09]} 6. Qxc4 {[%emt 1:32:15]} c5 {[%emt 0:01:37]} 7. Qc2 {[%emt 0:00:00]} (7. O-O {is interesting.} b6 8. Nd4 Ne5 9. Nc6) 7... b5 {[%emt 0:05:17]} (7... b6 $11 {is superior.}) 8. a4 $14 {[%emt 0:00:00]} b4 {[%emt 0:01:09][%cal Oc5c4]} 9. Ne5 {[%emt 0:00:00]} Ba6 {[%emt 0:08:16] The position is equal.} 10. Nc4 {[%emt 0:00:00]} Rc8 {[%emt 0:03:17]} 11. d3 {[%emt 0:00:00]} Be7 {[%emt 0:01:53]} 12. O-O {[%emt 0:00:00]} O-O {[%emt 0:02:08]} 13. Nbd2 {[%emt 0:00:00]} Nd5 {[%emt 0:02:28]} 14. Nb3 {[%emt 0:00:00]} Nb8 {[%emt 0:02:37]} 15. Bd2 {[%emt 0:00:00]} Nc6 {[%emt 0:01:10]} 16. Rfc1 {[%emt 0:00:00][%cal Bf1c1,Bc1c2,Bc2c5][%mdl 32]} Qd7 {[%emt 0:01:54]} 17. Ne3 {[%emt 0:00:00]} Ne5 {[%emt 0:06:06]} 18. Na5 {[%emt 0:00:00]} Bf6 {[%emt 0:11:46]} 19. Nec4 {[%emt 0:00:00]} Qc7 {[%emt 0:03:48]} 20. Qb3 {[%emt 0:00:00]} Rfd8 {[%emt 0:02:46]} 21. Rc2 {[%emt 0:07:30]} Ng6 {[%emt 0:08:18]} 22. Rac1 {[%emt 0:00:00]} Rb8 {[%emt 0:00:43]} 23. Be3 {[%emt 0:00:00][%cal Oc4d2]} Nge7 {[%emt 0:03:18]} (23... Nxe3 $6 24. Nxe3 Qxa5 25. Rxc5 $14) 24. Nd2 {[%emt 0:00:00]} Nxe3 {[%emt 0:07:57]} (24... Qxa5 25. Rxc5 Bb5 (25... Qb6 $2 26. Rxd5 Nxd5 27. Bxb6 $18) 26. Bxd5 Qxa4 (26... Nxd5 27. Rxb5 Rxb5 28. Nc4 $16) 27. Bc4 Qxb3 28. Nxb3 Bxc4 29. R5xc4 Bxb2 30. Rb1 $11) 25. Rxc5 {[%emt 0:00:00]} Qb6 {[%emt 0:01:32]} 26. fxe3 {[%emt 0:00:00]} Nd5 {[%emt 0:10:49]} (26... Rbc8 $1 $11 27. Ne4 Rxc5 28. Rxc5 Rd5) 27. Nc6 {[%emt 0:00:00]} (27. Ne4 $1 $14 Be7 (27... Nxe3 $2 28. Nc6 $18) 28. Nc6 Bxc5 29. Rxc5 Nxe3 30. a5) 27... Nc3 $1 $36 {[%emt 0:00:22][%mdl 2048] Black has good play.} 28. bxc3 {[%emt 0:00:00]} Qxc5 {[%emt 0:00:10]} 29. d4 $1 {[%emt 0:00:00]} bxc3 $1 {[%emt 0:01:31]} 30. Nxb8 {[%emt 0:01:25] [#] A dynamic duo of knights.} Bxd4 {[%emt 0:00:09]} 31. Nxa6 {[%emt 0:01:16]} Bxe3+ {[%emt 0:00:07]} 32. Kh1 {[%emt 0:00:06]} ({White must play} 32. Kf1 $1 $15 Qf5+ (32... cxd2 33. Rd1 $11) 33. Nf3 Bxc1 34. Qxc3) 32... cxd2 $19 {[%emt 0:00:07]} 33. Rd1 {[%emt 0:00:20]} Qc1 {[%emt 0:01:10][%mdl 1024] Black has strong compensation.} 34. Be4 {[%emt 0:00:52][%cal Oa6b4]} Rc8 {[%emt 0:00:43]} 35. Kg2 {[%emt 0:00:19][%cal Oa6b8]} g6 $1 {[%emt 0:00:32]} 36. Nb4 {[%emt 0:02:13]} Rc3 {[%emt 0:03:21] Prevents Nd3} ({Better is} 36... Rb8 $1 $19 {[%cal Rb8b4] White must now prevent ...Rxb4!} 37. Bc2 Bc5 (37... Rxb4 38. Qxb4 Qxc2 39. Qb8+ Kg7 40. Qe5+ f6 41. Qxe6 $11)) 37. Qb1 $17 {[%emt 0:00:15] [#]} Qxb1 $1 {[%emt 0:02:01]} 38. Bxb1 {[%emt 0:00:10]} Rc1 {[%emt 0:00:03]} 39. Bc2 {[%emt 0:00:10]} a5 {[%emt 0:02:46]} 40. Kf3 {[%emt 0:00:46]} Bg5 {[%emt 0:01:30] Black is more active.} 41. e3 {[%emt 0:06:43]} axb4 {[%emt 0:00:57]} 42. Rxd2 {[%emt 0:00:04][%mdl 4096] Endgame. [#] KRB-KRB} b3 $1 {[%emt 0:01:21][%mdl 512]} 43. Bxb3 {[%emt 0:01:31]} Rc3 {[%emt 0:00:06][%csl LRb3,LRe3]} 44. Bd1 {[%emt 0:01:00]} ({White should play} 44. Rb2) 44... Rxe3+ {[%emt 0:01:03]} 45. Kf2 {[%emt 0:01:13]} Rxg3 {[%emt 0:33:32] aiming for ...Rh3.} 46. Ra2 {[%emt 0:03:27]} (46. Rd5 $17) 46... Rc3 $19 {[%emt 0:00:00]} 47. a5 {[%emt 0:01:05]} Be7 {[%emt 0:00:00]} 48. a6 {[%emt 0:00:32] [#]} (48. Be2 $142) 48... Ra3 $1 {[%emt 0:00:00]} (48... Bc5+ 49. Kg2 $17) 49. Rxa3 {[%emt 0:00:17]} (49. Rc2) 49... Bxa3 {[%emt 0:00:00] KB-KB} 50. Ke2 {[%emt 0:20:46]} Bc5 {[%emt 0:00:00]} 51. Kd3 {[%emt 0:00:00]} f5 {[%emt 0:00:00]} 52. Bb3 {[%emt 0:00:00]} Kf7 {[%emt 0:00:00]} 53. Kc4 {[%emt 0:00:00]} Bg1 {[%emt 0:00:00]} 54. Kb5 {[%emt 0:00:00]} Ke7 {[%emt 0:00:00]} (54... Bxh2 $2 55. a7 Bg3 56. a8=Q $18 (56. a8=B h5 $17)) 55. Kc6 {[%emt 0:00:00]} e5 {[%emt 0:00:00]} (55... Bxh2 $2 56. a7 Kf6 57. a8=Q $18 (57. a8=B $2 {perishes.} g5 $19)) 56. Kd5 {[%emt 0:00:00]} e4 {[%emt 0:00:00]} (56... Bxh2 $2 {too greedy.} 57. a7 Kf6 58. a8=Q $18 (58. a8=B $2 {loses.} g5 $19)) 57. h4 {[%emt 0:00:00]} Kf6 {[%emt 0:00:00]} 58. Bd1 {[%emt 0:00:00]} Ba7 {[%emt 0:00:00]} 59. Bc2 {[%emt 0:00:00]} h6 {[%emt 0:00:00] ...g5 is the strong threat.} 60. Bd1 {[%emt 0:00:00]} g5 {[%emt 0:00:00] Black mates.} 61. hxg5+ {[%emt 0:00:00]} hxg5 {[%emt 0:00:00]} 62. Be2 {[%emt 0:00:00]} g4 {[%emt 0:08:30] Weighted Error Value: White=0.44/Black=0.07 (flawless) .  Mistake:       	White=6     	Black=2      Inaccurate:     	White=3     	Black=2      OK:         	White=19    	Black=20     Best:        	White=4     	Black=4      Strong:       	White=1     	Black=5      Brilliant:      	---       	Black=1} 0-1

[Event "21st Bangkok CC Open 2024"]
[Site "Bangkok"]
[Date "2024.04.14"]
[Round "2.3"]
[White "Mabusela, Johannes Manyedi"]
[Black "Peng, Xiongjian"]
[Result "0-1"]
[ECO "E39"]
[WhiteElo "2176"]
[BlackElo "2521"]
[Annotator "RC"]
[PlyCount "160"]
[EventDate "2024.04.13"]
[EventType "swiss"]
[EventCountry "THA"]
[SourceTitle "playchess.com"]
[Source "ChessBase"]
[SourceQuality "1"]
[TimeControl "40/5400+30:1800+30"]

1. d4 {[%emt 0:00:04]} Nf6 {[%emt 0:00:08]} 2. c4 {[%emt 0:00:06]} e6 {[%emt 0:00:06]} 3. Nc3 {[%emt 0:00:20]} Bb4 {[%emt 0:00:16]} 4. Qc2 {[%emt 0:00:49]} c5 {[%emt 0:01:15]} 5. dxc5 {[%emt 0:01:03]} Nc6 {[%emt 0:00:08]} 6. Nf3 {[%emt 0:03:31]} Bxc5 {[%emt 0:00:21]} 7. e3 {[%emt 0:06:02]} O-O {[%emt 0:03:03]} 8. a3 {[%emt 0:01:55]} d5 {[%emt 0:01:37]} 9. Be2 {[%emt 0:07:01]} dxc4 {[%emt 0:14:13]} 10. Bxc4 {[%emt 0:00:02]} Bd7 {[%emt 0:02:05]} 11. O-O {[%emt 0:00:30]} Rc8 {[%emt 0:00:08]} 12. Rd1 {[%emt 0:11:20]} Qe7 {[%emt 0:00:17]} 13. Qe2 {[%emt 0:00:28]} e5 {[%emt 0:02:00]} 14. e4 {[%emt 0:22:26]} Bg4 {[%emt 0:05:38]} 15. Be3 {[%emt 0:06:03]} Nd4 {[%emt 0:08:00]} 16. Bxd4 {[%emt 0:00:49]} Bxd4 {[%emt 0:00:12]} 17. Nd5 {[%emt 0:00:31]} Nxd5 {[%emt 0:00:15]} 18. Bxd5 {[%emt 0:00:18]} Bxf3 {[%emt 0:00:21]} 19. gxf3 {[%emt 0:12:47]} Rc7 {[%emt 0:00:52]} 20. Kh1 {[%emt 0:02:36]} Rfc8 {[%emt 0:02:27]} 21. Rd2 {[%emt 0:00:10]} Qf6 {[%emt 0:02:42]} 22. Rg1 {[%emt 0:02:01]} h5 {[%emt 0:00:20]} 23. Rg2 {[%emt 0:07:20]} Qf4 {[%emt 0:00:42]} 24. Qd3 {[%emt 0:01:32]} Kh7 {[%emt 0:03:49]} 25. Bb3 {[%emt 0:02:29]} g6 {[%emt 0:00:19]} 26. Rg1 {[%emt 0:00:43]} Kg7 {[%emt 0:01:13]} 27. Qe2 {[%emt 0:06:03]} b5 {[%emt 0:01:05]} 28. a4 {[%emt 0:01:03]} b4 {[%emt 0:00:07]} 29. Rf1 {[%emt 0:01:23]} h4 {[%emt 0:00:38]} 30. h3 {[%emt 0:00:20]} Rc6 {[%emt 0:01:10]} 31. Rdd1 {[%emt 0:01:39]} R8c7 {[%emt 0:00:49]} 32. Rd2 {[%emt 0:00:09]} a5 {[%emt 0:03:56]} 33. Kg2 {[%emt 0:00:16]} Rd6 {[%emt 0:04:19]} 34. Rfd1 {[%emt 0:00:35]} Rcd7 {[%emt 0:08:20]} 35. Bd5 {[%emt 0:00:45]} Rf6 {[%emt 0:00:55]} 36. Rc2 {[%emt 0:01:29]} Rd8 {[%emt 0:05:55]} 37. Rd3 {[%emt 0:00:57]} Qg5+ {[%emt 0:01:26]} 38. Kh1 {[%emt 0:00:14]} Rdd6 {[%emt 0:07:11]} 39. Qd2 {[%emt 0:01:19]} Qh5 {[%emt 0:02:16]} 40. Qe2 {[%emt 0:00:26]} Rb6 {[%emt 0:02:25]} 41. b3 {[%emt 0:30:11]} Bc3 {[%emt 0:30:44]} 42. Rc1 {[%emt 0:00:19]} Rf4 {[%emt 0:02:55]} 43. Rg1 {[%emt 0:00:00]} Rbf6 {[%emt 0:00:00]} 44. Rg4 {[%emt 0:00:00]} Bd4 {[%emt 0:00:00]} 45. Rxf4 {[%emt 0:00:00]} Rxf4 {[%emt 0:00:00]} 46. Kg2 {[%emt 0:00:00]} Qg5+ {[%emt 0:00:00]} 47. Kh1 {[%emt 0:00:00]} Rf6 {[%emt 0:00:00]} 48. Rd1 {[%emt 0:00:00]} Rd6 {[%emt 0:00:00]} 49. Qd2 {[%emt 0:00:00]} Qd8 {[%emt 0:00:00]} 50. Kg2 {[%emt 0:00:00]} Rd7 {[%emt 0:00:00]} 51. Rc1 {[%emt 0:00:00]} Bc3 {[%emt 0:00:00]} 52. Qe3 {[%emt 0:00:00]} Qf6 {[%emt 0:00:00]} 53. Rd1 {[%emt 0:00:00]} Rc7 {[%emt 0:00:00]} 54. Bc4 {[%emt 0:00:00]} Bd4 {[%emt 0:00:00]} 55. Qe2 {[%emt 0:00:00]} Rc8 {[%emt 0:00:00]} 56. Kh1 {[%emt 0:00:00]} Qf4 {[%emt 0:00:00]} 57. Kg2 {[%emt 0:00:00]} Qg5+ {[%emt 0:00:00]} 58. Kh1 {[%emt 0:00:00]} Kf8 {[%emt 0:00:00]} 59. Rg1 {[%emt 0:00:00]} Qf4 {[%emt 0:00:00]} 60. Rd1 {[%emt 0:00:00]} Ke7 {[%emt 0:00:00]} 61. Kg2 {[%emt 0:00:00]} Qg5+ {[%emt 0:00:00]} 62. Kh1 {[%emt 0:00:00]} Rc6 {[%emt 0:00:00]} 63. Rg1 {[%emt 0:01:47]} Qf4 {[%emt 0:00:00]} 64. Rd1 {[%emt 0:00:50]} Rxc4 {[%emt 0:00:00]} 65. bxc4 {[%emt 0:00:16]} b3 {[%emt 0:00:01]} 66. Kg2 {[%emt 0:04:26]} Qg5+ {[%emt 0:01:19]} 67. Kf1 {[%emt 0:00:54]} Qf6 {[%emt 0:00:41]} 68. Rb1 {[%emt 0:06:13]} Qb6 {[%emt 0:00:50]} 69. Qd3 {[%emt 0:00:00]} b2 {[%emt 0:00:08]} 70. Qc2 {[%emt 0:00:00]} Kd6 {[%emt 0:03:06]} 71. Ke2 {[%emt 0:00:53]} Kc5 {[%emt 0:00:23]} 72. f4 {[%emt 0:00:31]} exf4 {[%emt 0:00:46]} 73. Qd3 {[%emt 0:00:33]} Qb4 {[%emt 0:02:22]} 74. Kd1 {[%emt 0:00:18]} Qxa4+ {[%emt 0:00:12]} 75. Qc2 {[%emt 0:00:20]} Qxc4 {[%emt 0:01:35]} 76. Qxc4+ {[%emt 0:00:05]} Kxc4 {[%emt 0:00:03]} 77. Kc2 {[%emt 0:00:07]} a4 {[%emt 0:00:45]} 78. Rd1 {[%emt 0:00:07]} a3 {[%emt 0:00:15]} 79. Kb1 {[%emt 0:00:11]} Kb3 {[%emt 0:00:43]} 80. Rxd4 {[%emt 0:00:07]} a2# {[%emt 0:00:06]} 0-1

[Event "21st Bangkok CC Open 2024"]
[Site "Bangkok"]
[Date "2024.04.14"]
[Round "2.4"]
[White "Makhnev, Denis"]
[Black "Than, Min Hlaing"]
[Result "1-0"]
[ECO "A37"]
[WhiteElo "2516"]
[BlackElo "2168"]
[Annotator "TA"]
[PlyCount "89"]
[EventDate "2024.04.13"]
[EventType "swiss"]
[EventCountry "THA"]
[SourceTitle "playchess.com"]
[Source "ChessBase"]
[SourceQuality "1"]
[TimeControl "40/5400+30:1800+30"]

{[%evp 15,89,0,0,-18,-8,-30,0,0,0,0,0,0,32,0,16,-23,0,0,53,10,23,8,0,0,35,35,41,31,35,0,207,231,412,407,410,158,176,122,120,0,0,0,0,0,0,0,0,0,0,0,0,0,0,0,0,0,0,0,0,0,0,0,0,0,64,63,562,512,560,-4,29983,29984,29984,29985,29986,29987]} 1. Nf3 {[%emt 0:00:09]} c5 {[%emt 0:02:01]} 2. g3 {[%emt 0:01:49]} Nc6 {[%emt 0:00:43]} 3. Bg2 {[%emt 0:00:35]} g6 {[%emt 0:00:40]} 4. c4 {[%emt 0:02:56]} Bg7 {[%emt 0:00:27]} 5. O-O {[%emt 0:00:10]} e6 {[%emt 0:01:21]} 6. d3 {[%emt 0:03:24]} Nge7 {[%emt 0:00:54]} 7. Nc3 {[%emt 0:00:46]} d5 {[%emt 0:06:13]} 8. cxd5 {[%emt 0:09:58]} exd5 {[%emt 0:02:28]} 9. Bd2 {[%emt 0:00:07]} O-O {[%emt 0:02:19]} 10. a3 {[%emt 0:00:07]} h6 {[%emt 0:07:58]} 11. Na4 {[%emt 0:21:29] The position is equal.} b6 {[%emt 0:05:00]} 12. b4 {[%emt 0:00:07]} cxb4 {[%emt 0:07:10]} 13. axb4 {[%emt 0:00:07][%cal Ob4b5]} a6 {[%emt 0:09:30]} (13... Bg4 $5) 14. Rb1 {[%emt 0:06:43]} Bd7 {[%emt 0:04:55]} 15. Qb3 {[%emt 0:00:44][%cal Od3d4]} Kh7 {[%emt 0:04:28]} 16. Rfc1 {[%emt 0:01:17]} Rc8 {[%emt 0:02:43]} (16... d4 $11) 17. Qa2 {[%emt 0:18:26]} g5 {[%emt 0:05:41]} 18. h3 {[%emt 0:03:17]} f5 {[%emt 0:00:28]} 19. Nc3 {[%emt 0:03:51]} g4 {[%emt 0:12:11]} 20. hxg4 {[%emt 0:00:06]} fxg4 {[%emt 0:00:09]} 21. Nh4 {[%emt 0:00:05]} Nd4 {[%emt 0:01:12]} 22. Be3 {[%emt 0:00:06]} (22. Nxd5 Nxe2+ 23. Kh2 Rxc1 (23... Nxc1 24. Bxc1 Be6 25. Nxe7 $15) (23... Rxf2 24. Rxc8 Bxc8 25. Be1 $11) 24. Bxc1 Rxf2 $17) (22. Qxa6 $2 Rxc3 23. Bf1 Rxc1 24. Bxc1 Qc8 $19) 22... Rxc3 $2 {[%emt 0:02:37]} 23. Rxc3 $18 {[%emt 0:00:07]} Nxe2+ $2 {[%emt 0:00:06]} (23... Be8 {was necessary.} 24. Ra3 (24. Qxa6 $2 Nxe2+ 25. Kh2 Nxc3 $19) 24... Bb5) 24. Qxe2 {[%emt 0:00:05]} Bxc3 {[%emt 0:00:07] [#]} 25. Bxb6 $1 {[%emt 0:00:18][%mdl 512]} Qe8 $16 {[%emt 0:02:53]} 26. d4 {[%emt 0:02:20]} (26. Qa2 $18) 26... Ng6 {[%emt 0:03:51]} 27. Qc2 {[%emt 0:04:15]} (27. Qxa6 $2 Nxh4 28. gxh4 Be1 $17) ({Better is} 27. Qd3 $16 Be1 28. Rb2 (28. Qxa6 $2 Bxf2+ 29. Kh2 Nxh4 $19)) 27... Be1 $11 {[%emt 0:00:18]} 28. Bxd5 {[%emt 0:00:07] aiming for Be4.} Bxf2+ {[%emt 0:01:38]} 29. Kg2 {[%emt 0:00:05]} Rf6 $1 {[%emt 0:00:52]} 30. Rf1 {[%emt 0:07:37] Chess con chili.} (30. Be4 $5 Bc6 $8 31. d5 (31. Bxc6 Qxc6+ 32. Qxc6 Nxh4+ 33. gxh4 Rxc6 $11) 31... Bxd5 (31... Bxb6 32. Bxg6+ Rxg6 33. Qxg6+ Qxg6 34. Nxg6 $14) 32. Bxd5 Bxb6 33. Rf1 Rxf1 34. Kxf1 $11) 30... Bc6 {[%emt 0:02:54]} 31. Bxc6 {[%emt 0:03:44]} Qxc6+ {[%emt 0:00:15]} 32. Qxc6 {[%emt 0:00:04]} Nxh4+ {[%emt 0:00:12]} 33. gxh4 {[%emt 0:00:02]} Rxc6 {[%emt 0:00:27][%mdl 4096] Endgame. KRB-KRB} 34. Bc5 {[%emt 0:00:09]} Bxh4 {[%emt 0:01:46]} 35. d5 {[%emt 0:00:02] Prevents Re6} Rc8 {[%emt 0:04:16][%cal Oa6a5]} 36. Ra1 {[%emt 0:01:40]} Re8 {[%emt 0:01:57]} 37. d6 {[%emt 0:00:46]} Re2+ {[%emt 0:00:39]} 38. Kf1 {[%emt 0:00:05]} Rd2 {[%emt 0:00:47]} 39. Rxa6 {[%emt 0:00:29]} Bg5 {[%emt 0:04:22]} (39... Rd5 $11) 40. b5 $14 {[%emt 0:00:14] Hoping for b6.} Rc2 $2 {[%emt 0:00:38][%mdl 8192]} (40... Rd1+ $14 41. Kf2 Bf4) 41. Rc6 $18 {[%emt 0:30:42][%cal Oc5e3] Threatens to win with Be3!} g3 {[%emt 0:30:16][%cal Bg4g3,Bg3g2][%mdl 32] [#] White must now prevent ...g2+.} 42. b6 $2 {[%emt 0:00:53]} (42. d7 $1 $18) 42... h5 $2 {[%emt 0:01:36][%mdl 8192]} (42... g2+ $11 43. Kg1 Rxc5) 43. b7 {[%emt 0:00:25] White mates.} g2+ {[%emt 0:00:00]} 44. Kg1 {[%emt 0:00:00]} Rb2 {[%emt 0:00:00]} 45. Rb6 {[%emt 0:00:00] Weighted Error Value: White=0.30/Black=0.54.  Loses game:     	---       	Black=3      Missed win:     	White=2     	---        Mistake:       	White=2     	Black=3      Inaccurate:     	White=4     	Black=3      OK:         	White=10    	Black=9      Best:        	White=5     	Black=4      Strong:       	---       	Black=1} 1-0

[Event "21st Bangkok CC Open 2024"]
[Site "Bangkok"]
[Date "2024.04.14"]
[Round "2.5"]
[White "Ajay Santhosh Parvathareddy"]
[Black "Samant Aditya S"]
[Result "1/2-1/2"]
[ECO "A07"]
[WhiteElo "2170"]
[BlackElo "2512"]
[Annotator "TA"]
[PlyCount "40"]
[EventDate "2024.04.13"]
[EventType "swiss"]
[EventCountry "THA"]
[SourceTitle "playchess.com"]
[Source "ChessBase"]
[SourceQuality "1"]
[TimeControl "40/5400+30:1800+30"]

{[%evp 14,40,11,0,17,22,21,17,3,-24,4,0,32,15,30,38,60,38,64,66,43,0,0,0,47,0,0,0,57]} 1. Nf3 {[%emt 0:00:01]} Nf6 {[%emt 0:00:30]} 2. b3 {[%emt 0:00:18]} d5 {[%emt 0:01:04]} 3. Bb2 {[%emt 0:00:05]} Bf5 {[%emt 0:02:26]} 4. g3 {[%emt 0:01:07]} e6 {[%emt 0:00:37]} 5. Bg2 {[%emt 0:00:07]} h6 {[%emt 0:01:00]} 6. O-O {[%emt 0:01:19]} Be7 {[%emt 0:00:15]} 7. c4 {[%emt 0:01:15]} O-O {[%emt 0:00:43]} 8. d3 {[%emt 0:01:48]} a5 {[%emt 0:03:39]} 9. Nc3 {[%emt 0:03:20]} c6 {[%emt 0:03:30]} 10. Re1 {[%emt 0:11:55]} Bh7 {[%emt 0:05:59]} 11. e4 {[%emt 0:19:40]} Na6 {[%emt 0:05:14][%cal Bb8a6,Ba6b4,Bb4c6,Bc6d4][%mdl 32]} 12. cxd5 {[%emt 0:08:31]} cxd5 {[%emt 0:01:56]} 13. exd5 {[%emt 0:01:48]} exd5 {[%emt 0:09:15]} 14. Ne5 {[%emt 0:03:53]} Rc8 {[%emt 0:12:44] [#] And now ...Bb4 would win.} 15. Rc1 {[%emt 0:00:53][%cal Oc3d5] Threatens to win with Nxd5!} Nb4 {[%emt 0:20:10]} 16. a3 {[%emt 0:06:27]} Nc6 {[%emt 0:00:06]} 17. Qf3 {[%emt 0:03:22] Repels Bf5} Nd4 {[%emt 0:07:57][%csl LRb3,LRf3]} 18. Qd1 {[%emt 0:01:18][%cal Oc3d5] Strongly threatening Nxd5!} Nc6 {[%emt 0:03:28]} 19. Qf3 {[%emt 0:00:06]} Nd4 {[%emt 0:05:04][%csl LRb3,LRf3]} 20. Qd1 {[%emt 0:00:15][%cal Oc3d5]} Nc6 {[%emt 0:06:06] Weighted Error Value: White=0.15 (very precise) /Black=0.09 (flawless) .  Inaccurate:     	White=1     	Black=3      OK:         	White=5     	Black=7} 1/2-1/2

[Event "21st Bangkok CC Open 2024"]
[Site "Bangkok"]
[Date "2024.04.14"]
[Round "2.6"]
[White "Lalit Babu M R"]
[Black "Amores Gago, Javier"]
[Result "1-0"]
[ECO "A41"]
[WhiteElo "2508"]
[BlackElo "2141"]
[Annotator "TA"]
[PlyCount "75"]
[EventDate "2024.04.13"]
[EventType "swiss"]
[EventCountry "THA"]
[SourceTitle "playchess.com"]
[Source "ChessBase"]
[SourceQuality "1"]
[TimeControl "40/5400+30:1800+30"]

{[%evp 9,75,66,72,72,86,73,77,81,85,81,106,83,117,127,129,39,229,223,216,226,258,257,256,264,251,253,264,218,219,225,225,216,219,225,229,220,280,278,305,280,277,277,331,284,370,368,405,393,399,379,424,382,435,445,590,566,651,651,651,639,620,616,616,612,864,864,842,802]} 1. d4 {[%emt 0:00:04]} d6 {[%emt 0:02:33]} 2. Nf3 {[%emt 0:00:13]} Bg4 {[%emt 0:00:31]} 3. e4 {[%emt 0:01:15]} e6 {[%emt 0:00:59]} 4. h3 {[%emt 0:01:08]} Bxf3 {[%emt 0:04:21]} 5. Qxf3 {[%emt 0:00:39]} d5 {[%emt 0:00:38]} 6. Qb3 {[%emt 0:05:08]} b6 {[%emt 0:06:40]} 7. exd5 {[%emt 0:04:29]} Qxd5 {[%emt 0:01:37]} 8. Nc3 {[%emt 0:00:26][%cal Bb1c3,Bc3a4,Ba4c5][%mdl 32] White is better.} Qxb3 {[%emt 0:01:57]} 9. axb3 {[%emt 0:00:04][%cal Ba2b3,Bb3b4][%mdl 32]} Bb4 {[%emt 0:00:32]} 10. Bf4 {[%emt 0:00:26]} Kd7 {[%emt 0:07:25]} 11. Bc4 $36 {[%emt 0:02:32][%mdl 2048] White is really pushing. White is more active.} Nf6 {[%emt 0:03:03]} 12. Ke2 {[%emt 0:00:54]} (12. O-O $16) 12... c6 $2 {[%emt 0:10:36] [#] Prevents Nb5. Loses the game.} (12... Bxc3 $14 13. bxc3 Ne4) 13. Na4 $1 $18 {[%emt 0:02:56][%cal Oa4b6] Black must now prevent Nxb6+!} Ba5 {[%emt 0:23:42] [#]} 14. b4 $1 {[%emt 0:00:10][%mdl 512]} b5 {[%emt 0:00:10]} (14... Ke7 15. bxa5) 15. Nc5+ {[%emt 0:00:31]} Ke7 {[%emt 0:00:58] Black is weak on the dark squares} 16. Rxa5 {[%emt 0:01:12]} bxc4 {[%emt 0:00:05]} 17. Rha1 {[%emt 0:00:07]} a6 {[%emt 0:01:35]} 18. Nxa6 {[%emt 0:03:54]} Nxa6 {[%emt 0:01:21]} 19. Rxa6 {[%emt 0:00:04]} Rxa6 {[%emt 0:00:05]} 20. Rxa6 {[%emt 0:00:03][%mdl 4096] Endgame. KRB-KRN} Nd5 {[%emt 0:00:05]} 21. Be5 {[%emt 0:01:45] Hoping for Ra7+.} Rc8 {[%emt 0:12:56]} 22. c3 {[%emt 0:02:19]} Kf8 {[%emt 0:02:14]} 23. Kd2 {[%emt 0:01:14]} Kg8 {[%emt 0:00:05]} 24. Ra5 {[%emt 0:02:17]} f6 {[%emt 0:01:06]} 25. Bg3 {[%emt 0:00:05]} Kf7 {[%emt 0:01:18]} 26. Ra7+ {[%emt 0:01:44]} Kg6 {[%emt 0:00:23]} 27. Kc2 {[%emt 0:00:05]} h5 {[%emt 0:06:56][%cal Bh7h5,Bh5h4][%mdl 32]} 28. b3 {[%emt 0:01:30]} cxb3+ {[%emt 0:00:54]} 29. Kxb3 {[%emt 0:00:04]} h4 {[%emt 0:00:26]} 30. Bh2 {[%emt 0:00:06]} e5 {[%emt 0:02:40]} 31. dxe5 {[%emt 0:00:26] White is clearly winning.} c5 {[%emt 0:00:09][%cal Bc6c5,Bc5b4][%mdl 32]} 32. Rd7 {[%emt 0:01:49]} cxb4 {[%emt 0:03:09]} 33. Rxd5 {[%emt 0:00:06]} Rxc3+ {[%emt 0:00:09] KRB-KR} 34. Kb2 {[%emt 0:00:02] e6 is the strong threat.} Rc8 {[%emt 0:02:02]} 35. Rd4 {[%emt 0:00:17][%csl LRb4,LRh4]} fxe5 {[%emt 0:00:31]} 36. Rxh4 {[%emt 0:00:07]} Rd8 {[%emt 0:01:02]} 37. Bxe5 {[%emt 0:00:21]} Kf5 {[%emt 0:00:24]} 38. Bxg7 {[%emt 0:00:07] Weighted Error Value: White=0.06 (flawless) /Black=0.36.  Loses game:     	---       	Black=1      Mistake:       	White=1     	---        Inaccurate:     	---       	Black=3      OK:         	White=17    	Black=7      Best:        	White=1     	Black=1      Strong:       	White=1     	---} 1-0